Cogmind - Beta 14 @@@ ROGUE MODE // 2024.08.22 @ 18:17:14 Player: Daffa0360 Result: Destroyed by P-60 Hacker with Shock Rifle Performance ------------- Evolutions (4) 2000 Regions Visited (11) 2200 Robots Destroyed (105) 525 Value Destroyed (5484) 5484 Prototype IDs (38) 760 Alien Tech Used (0) 0 Bonus (3513) 3513 TOTAL SCORE: 14482 Bonus ------- High Alert Combat Kills 1407 Follower Combat Kills 406 Entered Garrisons 400 Used RIF Installer 1000 Aligned with FarCom 300 Cogmind --------- Core Integrity 0/850 Matter 3/300 Energy 350/350 System Corruption 4% Temperature Cool (0) Movement Walking (100) Location -6/Garrison Parts ------- > --- POWER (1) -------- Improved Quantum Reactor > --- PROPULSION (4) --- Enhanced Biometal Leg Enhanced Biometal Leg Enhanced Biometal Leg Enhanced Biometal Leg > --- UTILITY (8) ------ Gravity Neutralizer Experimental Optical Array Target Analyzer Experimental Core Analyzer Improved Armor Integrity Analyzer Relay Coupler [Cutter] (30) > --- WEAPON (2) ------- Coil Gun Helical Railgun > --- INVENTORY (5) ---- Light Deuterium Engine Relay Coupler [NC] (25) Relay Coupler [Heavy] (17) Falx Peak State ------------ > --- POWER ------------ Improved Quantum Reactor > --- PROPULSION ------- Enhanced Biometal Leg Enhanced Biometal Leg Enhanced Biometal Leg Enhanced Biometal Leg > --- UTILITY ---------- Experimental Heat Sink Gravity Neutralizer Experimental Optical Array Target Analyzer Experimental Core Analyzer Improved Armor Integrity Analyzer Relay Coupler [Cutter] > --- WEAPON ----------- Helical Railgun Helical Railgun > --- INVENTORY -------- Light Deuterium Engine Relay Coupler [NC] Relay Coupler [Heavy] Coil Gun Falx [Rating: 110] Favorites ----------- Power Light Angular Momentum Engine Engine Light Angular Momentum Engine Power Core Light Nuclear Core Reactor Improved Quantum Reactor Propulsion Carbon-fiber Leg Treads Advanced Treads Leg Carbon-fiber Leg Wheel Compact Wheel Hover Unit Aerolev Unit Utility Gravity Neutralizer Device Gravity Neutralizer Storage High-capacity Storage Unit Processor Improved Targeting Computer Hackware Relay Coupler [Cutter] Protection Light Armor Plating Weapon Enhanced Autogun Energy Gun Heavy Particle Gun Energy Cannon HERF Cannon Ballistic Gun Enhanced Autogun Launcher Improved Grenade Launcher Special Weapon Mining Laser Impact Weapon Heavy Hammer Slashing Weapon Falx Build | -11 -10 -10 -10 -9 -8 -8 -8 -8 -8 -6 -6 ------- Run | Yrd Mat Min Exi Min Mat Sto Gar Rec Scr Fac Gar Slots Evolved 8 | . . . . . 4 . . . . 4 . Power . | . . . . . . . . . . . . Propulsion 2 | . . . . . . . . . . 2 . Utility 6 | . . . . . 4 . . . . 2 . Weapon . | . . . . . . . . . . . . Parts Attached 154 | 6 1 . 2 2 6 35 31 3 6 8 54 Power 11 | 1 . . . 1 1 5 1 . . . 2 Engine 8 | 1 . . . 1 1 3 1 . . . 1 Core 2 | . . . . . . 2 . . . . . Reactor 1 | . . . . . . . . . . . 1 Propulsion 30 | 2 1 . . . . 10 4 . 1 2 10 Treads 8 | . . . . . . 7 . . . . 1 Leg 12 | . . . . . . . 2 . 1 2 7 Wheel 3 | 2 1 . . . . . . . . . . Hover 7 | . . . . . . 3 2 . . . 2 Flight . | . . . . . . . . . . . . Utility 40 | 1 . . 1 1 2 8 4 . 3 4 16 Device 16 | . . . . . 1 4 3 . . 1 7 Storage 2 | 1 . . 1 . . . . . . . . Processor 12 | . . . . 1 . 2 . . 2 1 6 Hackware 6 | . . . . . . . 1 . 1 2 2 Protection 4 | . . . . . 1 2 . . . . 1 Artifact . | . . . . . . . . . . . . Weapon 73 | 2 . . 1 . 3 12 22 3 2 2 26 Energy Gun 1 | . . . . . . 1 . . . . . Energy Cannon 3 | . . . . . . . . . . . 3 Ballistic Gun 37 | 2 . . 1 . . 10 12 . . 1 11 Ballistic Cannon . | . . . . . . . . . . . . Launcher 12 | . . . . . 2 . 5 2 . . 3 Special Weapon 2 | . . . . . . . . 1 . . 1 Impact Weapon 2 | . . . . . 1 1 . . . . . Slashing Weapon 16 | . . . . . . . 5 . 2 1 8 Piercing Weapon . | . . . . . . . . . . . . Special Melee Weapon . | . . . . . . . . . . . . Unidentified Prototypes 13 | . . . . . . 6 . . . 1 6 Parts Lost 33 | . . . . . 1 6 10 . . . 16 Power 4 | . . . . . . 2 1 . . . 1 Propulsion 11 | . . . . . 1 1 3 . . . 6 Utility 11 | . . . . . . 3 2 . . . 6 Weapon 7 | . . . . . . . 4 . . . 3 Highest Loss Streak 5 | . . . . . 1 1 5 . . . 3 To Critical Strikes . | . . . . . . . . . . . . Average Slot Usage (%) 90 | . 85 85 76 72 72 93 96 99 99 92 87 Engine 6 | . 14 14 14 14 9 5 8 9 9 6 3 Treads 3 | . . . . . . 9 6 . . . . Leg 9 | . . . . . . . 2 18 18 22 18 Wheel 3 | . 28 28 28 28 15 1 . . . . . Hover 2 | . . . . . . 2 7 . . . 2 Device 16 | . . . . . 7 22 26 27 19 18 12 Storage 4 | . 14 14 14 14 9 9 4 . . . . Processor 18 | . . . . 1 9 16 18 18 25 20 24 Hackware 5 | . . . . . . . 4 9 9 10 8 Protection 1 | . . . . . 7 3 . . . . . Ballistic Gun 9 | . 28 28 19 14 2 17 13 . . . 5 Slashing Weapon 3 | . . . . . . . 2 9 11 13 3 Peak Build Rating 110 | 6 7 7 22 26 31 40 39 34 47 66 110 Average Rating 46 | 5 6 6 15 21 21 33 35 33 38 58 70 On Entrance 25 | . 6 6 7 21 26 19 37 34 32 47 65 Naked Turns . | . . . . . . . . . . . . Heaviest Build 63 | 12 12 12 55 57 63 62 56 19 18 19 42 Greatest Support 132 | 26 32 32 32 32 32 56 54 25 31 65 132 Greatest Overweight (x) 18 | . . . 1 1 3 17 18 . . . 2 Average Overweight (x) . | . . . . 1 1 2 . . . . . Largest Inventory Capacity 20 | 8 8 8 20 20 20 20 20 5 5 5 5 Average Capacity 10 | 7 8 8 9 20 20 20 11 5 5 5 5 Most Carried 20 | 4 8 8 9 18 19 20 20 5 5 5 5 Average Carried 9 | 2 5 7 8 10 17 19 11 5 5 4 4 Final Capacity 20 | 8 8 8 20 20 20 20 5 5 5 5 5 Final Carried 20 | 4 7 8 9 18 18 20 5 5 5 5 4 Class Distribution -------------------- 35% | Mutant 30% | Scavenger-Mutant 16% | Skirmisher 10% | Gladiator 5% | Assassin Dominant Class ---------------- Mutant | -10/Materials Mutant | -10/Mines Mutant | -10/Exiles Mutant | -9/Mines Skirmisher | -8/Materials Skirmisher | -8/Storage Scavenger-Mutant | -8/Garrison Scavenger-Mutant | -8/Recycling Scavenger-Mutant | -8/Scraptown Assassin | -6/Factory Scavenger-Mutant | -6/Garrison Resources | -11 -10 -10 -10 -9 -8 -8 -8 -8 -8 -6 -6 ----------- Run | Yrd Mat Min Exi Min Mat Sto Gar Rec Scr Fac Gar Matter Collected 4089 | 292 108 18 . 40 113 1033 774 . 165 95 1451 Remotely . | . . . . . . . . . . . . Salvage Created 4984 | 105 37 42 . 105 563 1524 854 . . 59 1695 Parts 249 | 10 2 5 . 1 27 80 49 . . 4 71 Haulers Intercepted 6 | . . . . . . 6 . . . . . Recyclers Shooed 5 | . . . . . 1 3 . . . 1 . Parts Field Recycled . | . . . . . . . . . . . . Retrieved Matter . | . . . . . . . . . . . . Parts Self-Destructed . | . . . . . . . . . . . . Prevented . | . . . . . . . . . . . . Kills | -11 -10 -10 -10 -9 -8 -8 -8 -8 -8 -6 -6 ------- Run | Yrd Mat Min Exi Min Mat Sto Gar Rec Scr Fac Gar Combat Hostiles Destroyed 87 | . 1 3 . 4 12 18 21 . . . 28 Melee 5 | . . . . . . . 2 . . . 3 Guns 64 | . 1 3 . 4 5 18 14 . . . 19 Cannons 1 | . . . . . . . . . . . 1 AOE 11 | . . . . . 5 . 4 . . . 2 Classes Destroyed 17 | 1 1 1 . 2 2 5 1 . . . 4 Worker 1 | . . . . . . 1 . . . . . Tunneler 5 | 5 . . . . . . . . . . . Hauler 6 | . . . . . . 6 . . . . . Recycler 2 | . . . . . . 2 . . . . . Operator 2 | . . . . . . 1 . . . 1 . Watcher 5 | . . . . . 1 2 . . . 1 1 Swarmer 10 | . . 3 . . 3 . 4 . . . . Cutter 2 | . . . . . . . 2 . . . . Grunt 44 | . 1 . . . 6 10 14 . . . 13 Brawler 4 | . . . . . . 1 . . . . 3 Duelist 1 | . . . . . . . . . . . 1 Sentry 14 | . . . . 1 2 6 1 . . . 4 Hunter 2 | . . . . . 1 1 . . . . . Programmer 4 | . . . . . . . . . . . 4 Behemoth 1 | . . . . . . . . . . . 1 Executioner 2 | . . . . . . . . . . . 2 Assembled 3 | . . . . 3 . . . . . . . Best Kill Streak 5 | 5 1 3 . 1 5 4 3 . . 1 3 Combat Bots Only 5 | . 1 3 . 1 5 3 3 . . . 3 Max Kills in Single Turn 3 | 1 1 2 . 1 1 1 3 . . 1 2 Gunslinging 1 | . . 1 . . . . . . . . . Exploded 3 | . . . . . 1 . 3 . . . 1 Melee 1 | . . . . . . . 1 . . . 1 Uniques/NPCs Destroyed . | . . . . . . . . . . . . Combat | -11 -10 -10 -10 -9 -8 -8 -8 -8 -8 -6 -6 -------- Run | Yrd Mat Min Exi Min Mat Sto Gar Rec Scr Fac Gar Hostile Shots Fired 780 | . 5 14 . 12 51 68 74 . . . 556 Missed 293 | . 1 4 . 3 17 18 22 . . . 228 Damage Taken 6757 | . 46 79 . 145 416 800 1093 . . . 4178 Core 1487 | . . 31 . 106 135 34 324 . . . 857 Absorbed by Shields 5 | . . . . . . . 5 . . . . Ignored by Resistances 67 | . . . . . . . . . . . 67 Core Remaining (%) 51 | 100 . . . 45 . . . . 10 . . Volleys Fired 365 | 16 5 3 . . 18 92 60 4 . . 167 Largest 2 | 2 2 2 . . 2 2 2 1 . . 2 Hottest 88 | 40 40 40 . . 66 50 50 36 . . 88 Shots Fired 650 | 32 10 6 . 21 51 170 102 4 . . 254 Gun 579 | 32 10 6 . 21 31 170 92 . . . 217 Cannon 19 | . . . . . . . . . . . 19 Launcher 47 | . . . . . 20 . 10 4 . . 13 Special 5 | . . . . . . . . . . . 5 Kinetic 579 | 32 10 6 . 21 31 170 92 . . . 217 Thermal . | . . . . . . . . . . . . Explosive 20 | . . . . . 2 . 1 4 . . 13 Electromagnetic 46 | . . . . . 18 . 9 . . . 19 Robot Hit Streak 40 | 6 8 4 . 18 21 17 16 . . . 40 Robot Miss Streak 4 | 2 1 1 . 1 2 3 2 . . . 4 Penetration Max 1 | . . . . . . . . . . . 1 Secondary Targets 5 | . . 1 . . . 1 1 . . . 2 Max Gunslinging Chain 1 | . . 1 . . . 1 1 . . . 1 Capacitor 16 | . . . . . . . . . . . 16 Autonomous 53 | . . . . 21 32 . . . . . . Shots Hit Robots 457 | 21 7 5 . 20 38 124 69 . . 6 167 Core Hits 191 | 9 2 4 . 4 19 48 34 . . 1 70 Critical Kills 4 | . . . . . . 1 1 . . . 2 Critical Parts Destroyed 6 | . . . . . . 2 . . . . 4 Critical Strikes 13 | . . . . . . 3 1 . . . 9 Destroy 10 | . . . . . . 3 1 . . . 6 Sever 3 | . . . . . . . . . . . 3 Melee Attacks 107 | . . . . . 2 2 48 8 . 12 35 Impact 4 | . . . . . 2 2 . . . . . Slashing 103 | . . . . . . . 48 8 . 12 35 Piercing . | . . . . . . . . . . . . Sneak Attacks 2 | . . . . . . . . . . 2 . Combat Hostiles . | . . . . . . . . . . . . Follow-up Attacks 2 | . . . . . . . . . . . 2 Damage Inflicted 11112 | 172 60 41 . 586 1532 2162 1690 . . 376 4493 Guns 7707 | 172 60 41 . 586 753 2156 984 . . . 2955 Cannons 504 | . . . . . . . . . . . 504 Explosions 1994 | . . . . . 779 . 521 . . . 694 Melee 901 | . . . . . . . 185 . . 376 340 Ramming 6 | . . . . . . 6 . . . . . Kinetic 7707 | 172 60 41 . 586 753 2156 984 . . . 2955 Thermal . | . . . . . . . . . . . . Explosive 881 | . . . . . 17 . 170 . . . 694 Electromagnetic 1617 | . . . . . 762 . 351 . . . 504 Impact . | . . . . . . . . . . . . Slashing 901 | . . . . . . . 185 . . 376 340 Piercing . | . . . . . . . . . . . . Highest Corruption 8 | . . . . . . 2 8 8 8 . 4 Average Corruption 4 | . . . . . . 2 3 8 8 . 2 Corruption Purged . | . . . . . . . . . . . . Corruption Blocked . | . . . . . . . . . . . . Effects 93 | . . . . . . 3 49 22 18 . 1 Message Errors 21 | . . . . . . . 10 6 5 . . Matter Fused 25 | . . . . . . 1 13 7 4 . . Heat Flow Errors 9 | . . . . . . 1 5 2 1 . . Energy Discharges 12 | . . . . . . . 9 2 1 . . Parts Rejected 1 | . . . . . . . . . . . 1 Parts Fused 1 | . . . . . . . . 1 . . . Data Loss (minor) 15 | . . . . . . 1 8 2 4 . . Data Loss (major) 4 | . . . . . . . 2 1 1 . . Alerts 5 | . . . . . . . 2 1 2 . . Overload Shots . | . . . . . . . . . . . . Overflow Damage 218 | . . . . . 40 . 25 . . 119 34 Projectiles 34 | . . . . . . . . . . . 34 Explosions 52 | . . . . . 40 . 12 . . . . Melee 132 | . . . . . . . 13 . . 119 . Knockbacks . | . . . . . . . . . . . . Impact . | . . . . . . . . . . . . Kinetic . | . . . . . . . . . . . . Secondary . | . . . . . . . . . . . . Self-Inflicted Damage 114 | . . . . . . 1 98 . . . 15 Shots 6 | . . . . . . . 5 . . . 1 Rammed 2 | . . . . . . 2 . . . . . Targets Rammed 2 | . . . . . . 2 . . . . . Kicked . | . . . . . . . . . . . . Crushed . | . . . . . . . . . . . . Highest Temperature 264 | . 7 . . . 14 158 253 151 29 . 264 Average Temperature 52 | . 6 . . . 6 19 86 69 18 . 93 Received Heat Transfer 1857 | . 45 . . 27 153 315 375 . . . 942 Siege Activations . | . . . . . . . . . . . . Robots Corrupted 6 | . . . . . 2 . 1 . . . 3 Combat Hostiles 6 | . . . . . 2 . 1 . . . 3 Parts Fried 9 | . . . . . 4 . 1 . . . 4 Impact Corruptions . | . . . . . . . . . . . . Robots Melted . | . . . . . . . . . . . . Combat Hostiles . | . . . . . . . . . . . . Parts Melted 3 | . . . . . . . . . . . 3 Heat Transferred . | . . . . . . . . . . . . Parts Sabotaged . | . . . . . . . . . . . . Parts Stolen . | . . . . . . . . . . . . Parts Stripped . | . . . . . . . . . . . . Power Chain Reactions . | . . . . . . . . . . . . Alert | -11 -10 -10 -10 -9 -8 -8 -8 -8 -8 -6 -6 ------- Run | Yrd Mat Min Exi Min Mat Sto Gar Rec Scr Fac Gar Peak Influence 3466 | 25 51 94 . 59 434 452 1701 772 . 58 3466 Initial 765 | . 16 19 . . 22 120 293 765 . . . Average 702 | 8 37 29 . 8 273 207 753 672 . 16 1297 Maximum Alert Level 5 | . . . . . 2 2 5 3 . . 5 Low Security (%) 38 | 100 100 100 . 100 24 63 . . . 100 20 Level 1 15 | . . . . . 63 26 29 . . . 8 Level 2 12 | . . . . . 11 9 22 33 . . 12 Level 3 11 | . . . . . . . 26 66 . . 10 Level 4 6 | . . . . . . . 16 . . . 8 Level 5 15 | . . . . . . . 4 . . . 40 High Security . | . . . . . . . . . . . . Max Security . | . . . . . . . . . . . . Squads Dispatched 15 | . . . . . 3 10 . . . 2 . Investigation 6 | . . . . . 1 5 . . . . . Extermination 1 | . . . . . . . . . . 1 . Reinforcement 5 | . . . . . 2 2 . . . 1 . Assault . | . . . . . . . . . . . . Garrison 3 | . . . . . . 3 . . . . . Intercept . | . . . . . . . . . . . . Searches Triggered . | . . . . . . . . . . . . Construction Impeded 1 | . . . . . 1 . . . . . . Haulers Reinforced . | . . . . . . . . . . . . Active Scanning Responses . | . . . . . . . . . . . . Cargo Convoy Interrupts . | . . . . . . . . . . . . Stealth | -11 -10 -10 -10 -9 -8 -8 -8 -8 -8 -6 -6 --------- Run | Yrd Mat Min Exi Min Mat Sto Gar Rec Scr Fac Gar Distress Signals 9 | . . . . . 2 3 . . . . 4 Communications Jammed . | . . . . . . . . . . . . Distress Signals . | . . . . . . . . . . . . Times Spotted 129 | . 3 6 . 4 15 32 28 . . 2 39 Peak Tracking Total 7 | . 3 3 . 2 5 5 5 . . 1 7 Tactical Retreats 21 | . 1 . . 1 1 4 9 . . . 5 Traps | -11 -10 -10 -10 -9 -8 -8 -8 -8 -8 -6 -6 ------- Run | Yrd Mat Min Exi Min Mat Sto Gar Rec Scr Fac Gar Traps Triggered 20 | . . . . . . 8 9 . . . 3 Indirectly . | . . . . . . . . . . . . Trap Hack Attempts . | . . . . . . . . . . . . Triggered . | . . . . . . . . . . . . Disarmed . | . . . . . . . . . . . . Reprogrammed . | . . . . . . . . . . . . Reused 2 | . . . . . . 1 1 . . . . Traps Extracted . | . . . . . . . . . . . . Installed 4 | . . . . . . 1 3 . . . . Triggered 2 | . . . . . . 1 1 . . . . Most Traps Carried 4 | . . . . 4 4 4 3 . . . . Machines | -11 -10 -10 -10 -9 -8 -8 -8 -8 -8 -6 -6 ---------- Run | Yrd Mat Min Exi Min Mat Sto Gar Rec Scr Fac Gar Machines Disabled 12 | . . . . . 2 1 3 2 . . 4 Max in Single Turn 2 | . . . . . 1 1 1 2 . . 1 Garrison Relay 7 | . . . . . . . 3 . . . 4 Machines Repaired . | . . . . . . . . . . . . Machines Dismantled . | . . . . . . . . . . . . Machines Sabotaged . | . . . . . . . . . . . . Overloaded Fab Kills . | . . . . . . . . . . . . Hacking | -11 -10 -10 -10 -9 -8 -8 -8 -8 -8 -6 -6 --------- Run | Yrd Mat Min Exi Min Mat Sto Gar Rec Scr Fac Gar Machines Accessed 29 | . 2 1 1 . 2 10 . 3 2 7 1 Terminals 22 | . 2 1 . . 2 9 . 3 . 4 1 Fabricators 1 | . . . . . . . . . . 1 . Repair Stations . | . . . . . . . . . . . . Recycling Units . | . . . . . . . . . . . . Scanalyzers 1 | . . . . . . . . . . 1 . Garrison Access 2 | . . . . . . 1 . . . 1 . Total Hacks 72 | . 4 1 1 . 5 22 . 9 12 17 1 Successful 43 | . . 1 1 . 2 10 . 3 12 13 1 Failed 29 | . 4 . . . 3 12 . 6 . 4 . Catastrophic 4 | . . . . . . 2 . 1 . 1 . Database Lockouts . | . . . . . . . . . . . . Manual 19 | . 2 . 1 . 4 3 . 6 . 3 . Terminals 46 | . 4 1 . . 5 19 . 9 . 7 1 Fabricators 2 | . . . . . . . . . . 2 . Repair Stations . | . . . . . . . . . . . . Recycling Units . | . . . . . . . . . . . . Scanalyzers 7 | . . . . . . . . . . 7 . Garrison Access 4 | . . . . . . 3 . . . 1 . Terminal Hacks 33 | . . 1 1 . 2 9 . 3 12 4 1 Record 13 | . . . . . . . . . 12 1 . Part Schematic 1 | . . . . . . . . . . 1 . Robot Analysis 1 | . . . . . . . . . . 1 . Prototype ID Bank 1 | . . . . . . 1 . . . . . Open Door 4 | . . . . . . 4 . . . . . Emergency Access Points 1 | . . . . . . . . . . . 1 Alert Level 5 | . . . . . 1 3 . 1 . . . Unreport Threat 2 | . . . . . 1 . . 1 . . . Locate Traps 2 | . . . . . . 1 . . . 1 . Security Status 1 | . . . . . . . . 1 . . . Zone Layout 1 | . . 1 . . . . . . . . . Derelict Proto ID Bank 1 | . . . 1 . . . . . . . . Fabricator Hacks 1 | . . . . . . . . . . 1 . Build 1 | . . . . . . . . . . 1 . Repair Station Hacks . | . . . . . . . . . . . . Recycling Unit Hacks . | . . . . . . . . . . . . Scanalyzer 7 | . . . . . . . . . . 7 . Insert Component 3 | . . . . . . . . . . 3 . Analyze 4 | . . . . . . . . . . 4 . Garrison Access Hacks 2 | . . . . . . 1 . . . 1 . Unlock Access 2 | . . . . . . 1 . . . 1 . Unauthorized Hacks . | . . . . . . . . . . . . Terminals . | . . . . . . . . . . . . Fabricators . | . . . . . . . . . . . . Repair Stations . | . . . . . . . . . . . . Recycling Units . | . . . . . . . . . . . . Scanalyzers . | . . . . . . . . . . . . Garrison Access . | . . . . . . . . . . . . Data Cores Recovered . | . . . . . . . . . . . . Used . | . . . . . . . . . . . . Hacking Detections 22 | . 2 . . . 2 8 . 3 . 7 . Full Trace Events 7 | . 2 . . . 1 4 . . . . . Feedback Events . | . . . . . . . . . . . . Feedback Blocked . | . . . . . . . . . . . . Robot Schematics Acquired . | . . . . . . . . . . . . Robots Built 2 | . . . . . . . . . . 2 . Authchips 1 | . . . . . . . . . . 1 . Time 76 | . . . . . . . . . . 76 . Total Robot Build Rating 10 | . . . . . . . . . . 10 . Part Schematics Acquired 4 | . . . . . . . . . . 4 . Parts Built . | . . . . . . . . . . . . Authchips . | . . . . . . . . . . . . Time . | . . . . . . . . . . . . Total Part Build Rating . | . . . . . . . . . . . . Parts Repaired . | . . . . . . . . . . . . Time . | . . . . . . . . . . . . Parts Recycled . | . . . . . . . . . . . . Recycled Matter . | . . . . . . . . . . . . Retrieved Matter . | . . . . . . . . . . . . Retrieved Components . | . . . . . . . . . . . . Parts Scanalyzed 3 | . . . . . . . . . . 3 . Part Schematics Acquired 3 | . . . . . . . . . . 3 . Parts Damaged . | . . . . . . . . . . . . Bothacking | -11 -10 -10 -10 -9 -8 -8 -8 -8 -8 -6 -6 ------------ Run | Yrd Mat Min Exi Min Mat Sto Gar Rec Scr Fac Gar Used RIF Installer 2 | . . . . . . . 1 . . . 1 Program Shield 1 | . . . . . . . . . . . 1 Robots Hacked 2 | . . . . . . . . . . . 2 Non-combat . | . . . . . . . . . . . . Combat 2 | . . . . . . . . . . . 2 Robot Hacks Applied 2 | . . . . . . . . . . . 2 formatsys_high 2 | . . . . . . . . . . . 2 Relay Couplers Released 27 | . . . . . . . 12 . . . 15 Machine Destruction 27 | . . . . . . . 12 . . . 15 Attached 3 | . . . . . . . . . . 1 2 Fabnet Peak Effective % . | . . . . . . . . . . . . Robots Rewired . | . . . . . . . . . . . . Allies Hacked . | . . . . . . . . . . . . Hacks Repelled . | . . . . . . . . . . . . Allies | -11 -10 -10 -10 -9 -8 -8 -8 -8 -8 -6 -6 -------- Run | Yrd Mat Min Exi Min Mat Sto Gar Rec Scr Fac Gar Total Allies 14 | . . . . . . 10 . . . 2 2 Largest Group 10 | . . . . . . 10 . . . 2 2 Highest-Rated Group 173 | . . . . . . 173 . . . 28 58 Highest-Rated Ally 29 | . . . . . . 29 . . . 14 29 Total Orders 2 | . . . . . . . . . . . 2 STAY 1 | . . . . . . . . . . . 1 AID 1 | . . . . . . . . . . . 1 Ally Attacks 125 | . . . . . . 111 . . . 2 12 Total Damage 1449 | . . . . . . 1279 . . . . 170 Kills 12 | . . . . . . 12 . . . . . Allies Corrupted 2 | . . . . . . 2 . . . . . Allies Melted . | . . . . . . . . . . . . Intel | -11 -10 -10 -10 -9 -8 -8 -8 -8 -8 -6 -6 ------- Run | Yrd Mat Min Exi Min Mat Sto Gar Rec Scr Fac Gar Robot Analysis Total 1 | . . . . . . . . . . 1 . Derelict Logs Recovered 2 | . . 1 . 1 . . . . . . . Drone Launches . | . . . . . . . . . . . . Drone Recoveries . | . . . . . . . . . . . . Exploration | -11 -10 -10 -10 -9 -8 -8 -8 -8 -8 -6 -6 ------------- Run | Yrd Mat Min Exi Min Mat Sto Gar Rec Scr Fac Gar Turns Passed 15745 | 141 171 252 268 959 392 3160 2675 599 675 928 5525 Spaces Moved 8177 | 94 137 233 259 547 215 1077 1441 470 554 605 2545 Core 29 | 3 . . . . . 15 11 . . . . Treads 1103 | . . . . . . 773 306 . . . 24 Legs 4166 | . . . . . . . 319 470 554 605 2218 Wheels 1768 | 91 137 233 259 547 215 286 . . . . . Hover 1111 | . . . . . . 3 805 . . . 303 Flight . | . . . . . . . . . . . . Fastest Speed 46 | 50 90 100 100 115 115 145 46 120 120 120 76 Average Speed 132 | 88 91 100 101 115 124 239 112 120 120 120 121 Slowest Speed 950 | 90 100 100 115 115 145 900 950 120 120 120 260 Overloaded Moves . | . . . . . . . . . . . . Propulsion Burnouts . | . . . . . . . . . . . . Robots Hopped . | . . . . . . . . . . . . Cave-ins Triggered 1 | . . . . . . . 1 . . . . Exploration Rate (%) 53 | 4 25 44 59 82 16 90 77 88 56 12 88 Regions Visited 11 Branch Regions 6 Pre-discovered Areas 1 | . . 1 . . . . . . . . . Known Exits Taken 2 | . . . . . . 1 . . . 1 . Unknown Exits Taken 8 | 1 1 1 1 1 1 . . 1 1 . . Scrap Searched 4 | . . . . . . . . . 4 . . Spaces Dug 55 | . . . . . 2 2 13 22 . 3 13 Terrain Destroyed 388 | . . . . 9 46 3 24 63 . 3 240 Melee 41 | . . . . . 2 2 13 8 . 3 13 Projectile 59 | . . . . 9 26 1 . . . . 23 AOE 286 | . . . . . 18 . 11 55 . . 202 Terrain Rammed . | . . . . . . . . . . . . Walls Destroyed . | . . . . . . . . . . . . Machines Disabled . | . . . . . . . . . . . . Actions | -11 -10 -10 -10 -9 -8 -8 -8 -8 -8 -6 -6 --------- Run | Yrd Mat Min Exi Min Mat Sto Gar Rec Scr Fac Gar Total 12430 | 125 174 247 264 877 316 1550 2345 488 564 787 4693 Wait 3385 | . 27 11 . 317 69 298 680 2 . 150 1831 Move 8168 | 93 136 232 258 546 214 1077 1440 469 553 605 2545 Hop . | . . . . . . . . . . . . Pick Up 98 | 10 4 1 1 11 5 16 12 . . 8 30 Fast Attach 48 | . . . 2 . . 18 1 2 4 3 18 Attach 61 | 6 . . . 1 4 11 12 . . 4 23 Detach 6 | . . . . . . 5 . . . . 1 Swap 45 | . 1 . . 1 2 6 18 1 2 1 13 Drop 75 | . 1 . 3 1 2 14 7 2 5 6 34 Fire 365 | 16 5 3 . . 18 92 60 4 . . 167 Melee 99 | . . . . . 2 2 48 8 . 10 29 Ram 1 | . . . . . . 1 . . . . . Kick . | . . . . . . . . . . . . Crush 1 | . . . . . . 1 . . . . . Escape Stasis 74 | . . . . . . 8 64 . . . 2 Rewire . | . . . . . . . . . . . . Trap 4 | . . . . . . 1 3 . . . . Miscellaneous . | . . . . . . . . . . . . Route ------- -11/Scrapyard -10/Materials -10/Mines -10/Exiles -9/Mines -8/Materials -8/Storage (discovered 2 exits: [*Fac] / Gar) -8/Garrison (discovered 3 exits: *Rec x3) -8/Recycling (discovered 2 exits: *Fac / *Scr) -8/Scraptown -6/Factory (discovered 2 exits: [*Ext] / Gar) -6/Garrison (discovered 3 exits: [*Fac x3]) History --------- Turn | Location | Event 17 | -11/Scrapyard | Discovered new exit (range 16) 142 | -11/Scrapyard | Entered Materials 233 | -10/Materials | Discovered new exit (range 7) 311 | -10/Materials | Build established: Mutant 313 | -10/Materials | Entered Mines 330 | -10/Mines | Learned location of Zion (-7) 429 | -10/Mines | YI-UF0 nonchalantly dropped a Grenade Launcher on the ground 559 | -10/Mines | Deemed a non-threat by the Exiles lab entrance 560 | -10/Mines | Discovered new exit (range 5) 565 | -10/Mines | Entered Exiles 590 | -10/Exiles | Met 8R-AWN 607 | -10/Exiles | Met EX-HEX 633 | -10/Exiles | Met EX-BIN 645 | -10/Exiles | Aligned with FarCom system 646 | -10/Exiles | Given EX-Vault access code 669 | -10/Exiles | Opened EX-Vault 677 | -10/Exiles | Found AWS/Gauss 699 | -10/Exiles | Warned to stay clear of 0b10 Research branches 728 | -10/Exiles | Met EX-DEC 767 | -10/Exiles | Discovered new exit (range 10) 833 | -10/Exiles | Left Exiles lab with AWS/Gauss 833 | -10/Exiles | Entered Mines 857 | -9/Mines | Assembled infested the area 862 | -9/Mines | Assisted by a Guerilla fighting off Assembled 1173 | -9/Mines | Learned location of 1 exit from Proximity Caves 1482 | -9/Mines | Discovered new exit (range 6) 1510 | -9/Mines | Found a hidden stash of uninstalled traps 1646 | -9/Mines | Core integrity fell below 50% 1792 | -9/Mines | Entered Materials 1792 | -8/Materials | Evolved 4 slots: Utility x4 1891 | -8/Materials | AWS/Gauss suddenly broke down 1949 | -8/Materials | Discovered new exit (range 16) 2184 | -8/Materials | Entered Storage 2553 | -8/Storage | Build established: Skirmisher 2821 | -8/Storage | Discovered new exit (range 14) 4039 | -8/Storage | Assisted by bots powering up and referring to "LRC-V3" 4240 | -8/Storage | Garrison activated, responded to threat 4255 | -8/Storage | Lost 5 allies 4331 | -8/Storage | Build established: Commander-Mutant 4421 | -8/Storage | Lost 4 allies 4654 | -8/Storage | Build established: Mutant 5344 | -8/Storage | Identified exit to Garrison 5344 | -8/Storage | Entered Garrison 5502 | -8/Garrison | Triggered checkpoint 5777 | -8/Garrison | Triggered checkpoint 6411 | -8/Garrison | Lost 3 parts (1n1u1w) 6713 | -8/Garrison | Core integrity fell below 50% 6837 | -8/Garrison | Build established: Scavenger-Mutant 7020 | -8/Garrison | Triggered checkpoint 7044 | -8/Garrison | Discovered new exit (range 4) 7078 | -8/Garrison | Discovered new exit (range 8) 7121 | -8/Garrison | Triggered checkpoint 7382 | -8/Garrison | Triggered checkpoint 7483 | -8/Garrison | Crushed by falling debris 7525 | -8/Garrison | Discovered new exit (range 8) 7535 | -8/Garrison | Installed Relay Interface Framework 7586 | -8/Garrison | Core integrity fell below 20% 7612 | -8/Garrison | Lost 5 parts (1p1n3w) 7650 | -8/Garrison | Garrison Relay disabled 7807 | -8/Garrison | Garrison Relay disabled 7933 | -8/Garrison | Garrison Relay disabled 8019 | -8/Garrison | Entered Recycling 8263 | -8/Recycling | Discovered new exit (range 8) 8586 | -8/Recycling | Scanned before Scraplab entrance 8605 | -8/Recycling | Entered Scraplab 8615 | -8/Recycling | Discovered new exit (range 3) 8618 | -8/Recycling | Entered Scraptown 8805 | -8/Scraptown | Turned away by UFD registrar 8805 | -8/Scraptown | Turned away by UFD registrar 8855 | -8/Scraptown | Visited Shadow of the Wyrm 8890 | -8/Scraptown | Visited SPCMW 8913 | -8/Scraptown | Visited Cyclists 9246 | -8/Scraptown | Discovered new exit (range 11) 9293 | -8/Scraptown | Entered Factory 9293 | -6/Factory | Evolved 4 slots: Propulsion x2, Utility x2 9463 | -6/Factory | Fabricated E-15 Imp (x2) 9590 | -6/Factory | Build established: Assassin 9603 | -6/Factory | Discovered new exit (range 8) 10130 | -6/Factory | Build established: Gladiator 10221 | -6/Factory | Identified exit to Garrison 10221 | -6/Factory | Entered Garrison 10541 | -6/Garrison | Triggered checkpoint 11299 | -6/Garrison | Triggered checkpoint 11334 | -6/Garrison | Garrison Relay disabled 11733 | -6/Garrison | Spotted B-75 Beast 11766 | -6/Garrison | Lost 3 parts (1p1n1w) 11958 | -6/Garrison | Found Quantum Capacitor 11978 | -6/Garrison | Destroyed B-75 Beast 12051 | -6/Garrison | Lost 3 parts (1n2u) 12173 | -6/Garrison | Found Quantum Capacitor 12447 | -6/Garrison | Core integrity fell below 50% 12497 | -6/Garrison | Build established: Skirmisher 12657 | -6/Garrison | Triggered checkpoint 13004 | -6/Garrison | Discovered new exit (range 14) 13039 | -6/Garrison | Build established: Mutant 13093 | -6/Garrison | Triggered checkpoint 13175 | -6/Garrison | Garrison Relay disabled 13856 | -6/Garrison | Build established: Scavenger-Mutant 14169 | -6/Garrison | Triggered checkpoint 14194 | -6/Garrison | Spotted Executioner 14194 | -6/Garrison | Spotted Executioner 14238 | -6/Garrison | Core integrity fell below 20% 14243 | -6/Garrison | Destroyed Executioner 14247 | -6/Garrison | Destroyed Executioner 14260 | -6/Garrison | Found Prototype Processor 14260 | -6/Garrison | Identified Exp. Core Analyzer 14655 | -6/Garrison | Garrison Relay disabled 14777 | -6/Garrison | Discovered new exit (range 9) 14816 | -6/Garrison | Expanded RIF knowledge: Program Shield 15671 | -6/Garrison | Discovered new exit (range 21) 15746 | -6/Garrison | Destroyed by P-60 Hacker with Shock Rifle Last Messages --------------- 15723_ Slug penetrates Wall. 15723_ Slug penetrates P-60 Hacker. 15726_ P-60 Hacker suffers critical hit (Destroy). 15726_ Destroyed Shock Rifle. 15726_ Slug penetrates Wall. 15729_ Slug penetrates P-60 Hacker. 15729_ Destroyed Shock Rifle. 15729_ Slug penetrates P-60 Hacker. 15735_ Slug penetrates Wall. 15735_ P-60 Hacker suffers critical hit (Destroy). 15735_ Destroyed Gravmag System. 15738_ Slug penetrates P-60 Hacker. 15738_ Slug penetrates Wall. 15740_ System corrupted: Exp. Heat Sink rejected. 15741_ Slug penetrates Wall. 15744_ P-60 Hacker destroyed. 15744_ Slug penetrates P-60 Hacker. Map ----- +----------------------------------------------------+ | # #" ## ""## ! = #?????????????? | | # ## !! #### #####! #####[ !#?????????????? | | %! ####### #??#"" ""#??#[ !#?????????????? | | ##?#######??#[!!#?????????????? | | "#??????????#####?????????????? | | # ## ###"+##"###????????????????????????????? | | # ## #### ####??????????????????????????????? | | + #?????????????????????????????????? | | ####?????????????????????????????????? | | =%[ #????????????????????????????????????? | | !!*!#????????????????????????????????????? | | # ## *%###????????????????????????????????????? | | # ## [#??????????????????????????????????????? | | *%#####??????????????????????????????????? | | =" #??????????????????????????????????? | | ### #??????????????????????????????????? | | #""""## #?# ###############????????????????????? | | ??????# #?# #????????????????????? | | ??+???#^^^#?# ############# #????????????????????? | | ??????# #?# #???????????# #????????????????????? | | ??????# #?# #???????????# #????????????????????? | | ??????# #?# #???????????# #????????????????????? | | ??????# ###;#############;#################????? | | ??????# = #????? | | ??????# !%! =%! #????? | | ??????# *%@=^^p[ #????? | | ??????#######;;############^^###;######## < #????? | | ????????????# #??????????# #?# #???????????????? | | ????????????# %#??????????# #?# #???????????????? | | ????????????#[+############ #?# #???????????????? | | ????????????# = #?# #???????????????? | | ????????????#! ! #?# #???????????????? | | ????????????## #####"""#####?# #???????????????? | | ????????????#! """#???ggg??????#!#???????????????? | | ????????????#######????????????#!#???????????????? | | ???????????????????????????????#%#???????????????? | | ???????????????????????????????#!#???????????????? | | ???????????????????????????????+=+???????????????? | | ???????????????????????????????? ????????????????? | | ?????????????????????????????+?? ??+?????????????? | | ???????????????????????????????? ????????????????? | | ???????????????????????????????+ +???????????????? | | ????????????????????????????????#????????????????? | | ?????????????????????????????????????????????????? | | ?????????????????????????????????????????????????? | | ?????????????????????????????????????????????????? | | ?????????????????????????????????????????????????? | | ?????????????????????????????????????????????????? | | ?????????????????????????????????????????????????? | | ?????????????????????????????????????????????????? | +----------------------------------------------------+ Best States ------------- Heat Dissipation 63 Energy Generation 29 Energy Capacity 350 Matter Stores 300 Matter Capacity 300 Sight Range 23 Terrain Scan Range 16 Terrain Scan Density 85 Additional Mass Support 12 Base Temperature (-) 100 Armor Coverage 600 Resistance: KI 20 Phase Shifting 10 Evasion (%) 55 Targeting Accuracy 11 Melee Accuracy 6 Target Analysis 5 Core Analysis 8 Armor Integrity Analysis 40 Recoil Reduction 6 Offensive Hacking 12 Relay Coupler Types 2 Relay Coupler Value 60 Authchip Count 1 Item Schematics ----------------- Force Lance | -6/Factory | Hacked Coil Gun | -6/Factory | Scanalyzed Imp. Grenade Launcher | -6/Factory | Scanalyzed Hyp. Gauss Rifle | -6/Factory | Scanalyzed Robot Schematics ------------------ None Fabricated ------------ E-15 Imp | x2 | -6/Factory | Preloaded, Authchip Alien Tech Used ----------------- None Achievements -------------- Respectable Loadout Challenges ------------ None Game ------ Seed PotentialHoverFirepult Manual? 0 Play Time 01:45:27 Cumulative 56.0 hours Start 2024.08.21 @ 18:16:39 End 2024.08.22 @ 18:17:14 Sessions 7 Manual Loads 0 Difficulty Rogue Special Mode None Game No. 90 Rogue 86 Adventurer 4 Explorer 0 Win Type - Total 0 Types 0/0/0/0/0/0/0/0/0 Lore% 27 Gallery% 41 Achievement% 32 Wizard Run 0 Options --------- Layout 2 ASCII 0 Keyboard 0 Movement Mouse Keybinds 0 Fullscreen 2 Font 24/Smallcaps Map View 50x44 Zoom Use 0% Tactical HUD 1 Map Filters NONE Filters NONE Steam 1 RUN: 9097de11-7fc1-4664-a199-1e1944ec5bb4